[Event "Titled Tuesday Blitz March 08 Early 2022"]
[White "Istvanovszki, Martin"]
[Black "Aradhya, Garg"]
[WhiteFideId "726958"]
[BlackFideId "25006746"]
[WhiteElo "2345"]
[BlackElo "2169"]
[Result "1/2-1/2"]
[Round "10"]
[TimeControl "180+1"]
[Date "2022.03.09"]
[WhiteClock "0:00:31"]
[BlackClock "0:00:22"]

1. e4 {[%clk 0:03:00]}  e5 {[%clk 0:02:57]} 2. d4 {[%clk 0:03:00]}  exd4 {[%clk 0:02:57]} 3. Qxd4 {[%clk 0:03:00]}  Nc6 {[%clk 0:02:57]} 4. Qe3 {[%clk 0:03:00]}  Nf6 {[%clk 0:02:57]} 5. Nc3 {[%clk 0:03:01]}  Bb4 {[%clk 0:02:57]} 6. Bd2 {[%clk 0:03:01]}  O-O {[%clk 0:02:57]} 7. O-O-O {[%clk 0:03:02]}  Re8 {[%clk 0:02:57]} 8. Qg3 {[%clk 0:03:02]}  Nxe4 {[%clk 0:02:57]} 9. Nxe4 {[%clk 0:03:02]}  Rxe4 {[%clk 0:02:58]} 10. c3 {[%clk 0:03:03]}  Bd6 {[%clk 0:02:57]} 11. f4 {[%clk 0:03:03]}  Qf6 {[%clk 0:02:52]} 12. Nh3 {[%clk 0:03:02]}  Ra4 {[%clk 0:02:50]} 13. Bd3 {[%clk 0:02:35]}  b6 {[%clk 0:02:50]} 14. Kb1 {[%clk 0:02:14]}  Ba6 {[%clk 0:02:48]} 15. Bc2 {[%clk 0:02:14]}  Ra5 {[%clk 0:02:40]} 16. Ng5 {[%clk 0:02:10]}  h6 {[%clk 0:02:39]} 17. Ne4 {[%clk 0:02:09]}  Qe6 {[%clk 0:02:40]} 18. b3 {[%clk 0:01:58]}  Bf8 {[%clk 0:02:36]} 19. c4 {[%clk 0:01:48]}  d5 {[%clk 0:02:34]} 20. Bxa5 {[%clk 0:01:44]}  dxe4 {[%clk 0:02:26]} 21. Bc3 {[%clk 0:01:43]}  f5 {[%clk 0:02:22]} 22. Qe3 {[%clk 0:01:37]}  Re8 {[%clk 0:01:53]} 23. h3 {[%clk 0:01:35]}  Bc5 {[%clk 0:01:45]} 24. Qe2 {[%clk 0:01:33]}  Bc8 {[%clk 0:01:40]} 25. Rd5 {[%clk 0:01:30]}  a5 {[%clk 0:01:39]} 26. Rhd1 {[%clk 0:01:28]}  Qe7 {[%clk 0:01:28]} 27. g4 {[%clk 0:01:23]}  Be6 {[%clk 0:01:28]} 28. R5d2 {[%clk 0:01:15]}  Nb4 {[%clk 0:01:25]} 29. gxf5 {[%clk 0:01:09]}  Bxf5 {[%clk 0:01:26]} 30. Bxb4 {[%clk 0:01:09]}  axb4 {[%clk 0:01:21]} 31. Rd5 {[%clk 0:01:09]}  Qf7 {[%clk 0:01:05]} 32. a4 {[%clk 0:00:56]}  bxa3 {[%clk 0:01:00]} 33. Ka2 {[%clk 0:00:56]}  Bd6 {[%clk 0:00:52]} 34. Qe3 {[%clk 0:00:50]}  Be6 {[%clk 0:00:47]} 35. Qxe4 {[%clk 0:00:42]}  Bxd5 {[%clk 0:00:46]} 36. Qh7+ {[%clk 0:00:42]}  Kf8 {[%clk 0:00:46]} 37. Rxd5 {[%clk 0:00:43]}  Re2 {[%clk 0:00:35]} 38. Rf5 {[%clk 0:00:39]}  Rxc2+ {[%clk 0:00:35]} 39. Ka1 {[%clk 0:00:30]}  Rc1+ {[%clk 0:00:31]} 40. Ka2 {[%clk 0:00:30]}  Rc2+ {[%clk 0:00:32]} 41. Ka1 {[%clk 0:00:31]}  Rc1+ {[%clk 0:00:23]} 42. Ka2 {[%clk 0:00:31]}  Rc2+ {[%clk 0:00:22]} 1/2-1/2


[Site "https://www.chess.com"]

[Event "Titled Tuesday Blitz March 08 Early 2022"]
[White "Jary, Sergey"]
[Black "Vakhlamov, Igor L."]
[WhiteFideId "14110350"]
[BlackFideId "24126748"]
[WhiteElo "2260"]
[BlackElo "2401"]
[Result "0-1"]
[Round "10"]
[TimeControl "180+1"]
[Date "2022.03.08"]
[WhiteClock "0:00:19"]
[BlackClock "0:00:07"]

1. e4 {[%clk 0:02:59]}  c5 {[%clk 0:02:59]} 2. Nf3 {[%clk 0:03:00]}  Nc6 {[%clk 0:02:59]} 3. d4 {[%clk 0:03:00]}  cxd4 {[%clk 0:03:00]} 4. Nxd4 {[%clk 0:03:00]}  g6 {[%clk 0:03:01]} 5. c4 {[%clk 0:03:00]}  Nf6 {[%clk 0:03:01]} 6. Nc3 {[%clk 0:02:59]}  d6 {[%clk 0:03:01]} 7. Be2 {[%clk 0:02:59]}  Nxd4 {[%clk 0:03:01]} 8. Qxd4 {[%clk 0:02:58]}  Bg7 {[%clk 0:03:02]} 9. Be3 {[%clk 0:02:59]}  O-O {[%clk 0:03:03]} 10. Qd2 {[%clk 0:02:59]}  Be6 {[%clk 0:03:04]} 11. O-O {[%clk 0:02:58]}  Qa5 {[%clk 0:03:04]} 12. Rfd1 {[%clk 0:02:30]}  Rfc8 {[%clk 0:03:03]} 13. Rac1 {[%clk 0:02:03]}  Bxc4 {[%clk 0:02:55]} 14. Nd5 {[%clk 0:02:03]}  Qxd2 {[%clk 0:02:55]} 15. Nxe7+ {[%clk 0:01:58]}  Kf8 {[%clk 0:02:55]} 16. Rxd2 {[%clk 0:01:54]}  Kxe7 {[%clk 0:02:50]} 17. Rxc4 {[%clk 0:01:52]}  Rxc4 {[%clk 0:02:50]} 18. Bxc4 {[%clk 0:01:48]}  Nxe4 {[%clk 0:02:50]} 19. Re2 {[%clk 0:01:44]}  Kf8 {[%clk 0:02:34]} 20. Bd5 {[%clk 0:01:44]}  Nc5 {[%clk 0:02:30]} 21. g3 {[%clk 0:01:41]}  Rc8 {[%clk 0:02:27]} 22. b4 {[%clk 0:01:41]}  Nd3 {[%clk 0:02:19]} 23. Bxb7 {[%clk 0:01:41]}  Rc7 {[%clk 0:02:14]} 24. Bd5 {[%clk 0:01:41]}  Nxb4 {[%clk 0:02:14]} 25. Bb3 {[%clk 0:01:37]}  h5 {[%clk 0:02:09]} 26. Kg2 {[%clk 0:01:34]}  Be5 {[%clk 0:00:59]} 27. f4 {[%clk 0:01:33]}  Bf6 {[%clk 0:00:58]} 28. Rd2 {[%clk 0:01:30]}  Ke7 {[%clk 0:00:55]} 29. Re2 {[%clk 0:01:30]}  Kf8 {[%clk 0:00:49]} 30. Rd2 {[%clk 0:01:31]}  Be7 {[%clk 0:00:49]} 31. Kf3 {[%clk 0:01:21]}  Na6 {[%clk 0:00:49]} 32. h3 {[%clk 0:01:18]}  Nc5 {[%clk 0:00:49]} 33. Bd5 {[%clk 0:01:14]}  Bf6 {[%clk 0:00:47]} 34. g4 {[%clk 0:01:11]}  hxg4+ {[%clk 0:00:48]} 35. hxg4 {[%clk 0:01:10]}  Ke7 {[%clk 0:00:42]} 36. Rc2 {[%clk 0:01:07]}  a5 {[%clk 0:00:39]} 37. Bd2 {[%clk 0:01:03]}  a4 {[%clk 0:00:39]} 38. Bc1 {[%clk 0:01:00]}  Rc8 {[%clk 0:00:39]} 39. Ba3 {[%clk 0:00:59]}  g5 {[%clk 0:00:39]} 40. fxg5 {[%clk 0:00:53]}  Bxg5 {[%clk 0:00:40]} 41. Rc4 {[%clk 0:00:53]}  Rh8 {[%clk 0:00:31]} 42. Bxc5 {[%clk 0:00:49]}  dxc5 {[%clk 0:00:32]} 43. Rxa4 {[%clk 0:00:49]}  Rh3+ {[%clk 0:00:31]} 44. Kg2 {[%clk 0:00:48]}  Rd3 {[%clk 0:00:29]} 45. Be4 {[%clk 0:00:47]}  Rd2+ {[%clk 0:00:28]} 46. Kf3 {[%clk 0:00:46]}  f6 {[%clk 0:00:29]} 47. Bf5 {[%clk 0:00:46]}  Kd6 {[%clk 0:00:28]} 48. Ra8 {[%clk 0:00:43]}  Kc7 {[%clk 0:00:28]} 49. a4 {[%clk 0:00:42]}  Rd4 {[%clk 0:00:24]} 50. a5 {[%clk 0:00:42]}  Rf4+ {[%clk 0:00:24]} 51. Kg3 {[%clk 0:00:41]}  Ra4 {[%clk 0:00:25]} 52. a6 {[%clk 0:00:40]}  Kb6 {[%clk 0:00:23]} 53. a7 {[%clk 0:00:31]}  Ra3+ {[%clk 0:00:22]} 54. Kf2 {[%clk 0:00:30]}  Bf4 {[%clk 0:00:11]} 55. Ke2 {[%clk 0:00:28]}  c4 {[%clk 0:00:10]} 56. Kd1 {[%clk 0:00:27]}  Ra2 {[%clk 0:00:07]} 57. Rc8 {[%clk 0:00:24]}  Kxa7 {[%clk 0:00:06]} 58. Rxc4 {[%clk 0:00:24]}  Bg5 {[%clk 0:00:06]} 59. Rb4 {[%clk 0:00:22]}  Ka6 {[%clk 0:00:06]} 60. Ke1 {[%clk 0:00:21]}  Bd2+ {[%clk 0:00:06]} 61. Kd1 {[%clk 0:00:19]}  Bxb4 {[%clk 0:00:07]} 0-1


[Site "https://www.chess.com"]

[Event "Titled Tuesday Blitz March 08 Early 2022"]
[White "Jobava, Baadur"]
[Black "Dubov, Daniil"]
[WhiteFideId "13601520"]
[BlackFideId "24126055"]
[WhiteElo "2617"]
[BlackElo "2791"]
[Result "0-1"]
[Round "10"]
[TimeControl "180+1"]
[Date "2022.03.08"]
[WhiteClock "0:00:08"]
[BlackClock "0:00:06"]

1. e4 {[%clk 0:02:54]}  c5 {[%clk 0:02:59]} 2. Nf3 {[%clk 0:02:54]}  e6 {[%clk 0:02:59]} 3. d4 {[%clk 0:02:54]}  cxd4 {[%clk 0:03:00]} 4. Nxd4 {[%clk 0:02:55]}  a6 {[%clk 0:03:00]} 5. Bd3 {[%clk 0:02:55]}  Bc5 {[%clk 0:02:58]} 6. c3 {[%clk 0:02:55]}  Ne7 {[%clk 0:02:56]} 7. Be3 {[%clk 0:02:53]}  d6 {[%clk 0:02:56]} 8. Nd2 {[%clk 0:02:52]}  O-O {[%clk 0:02:55]} 9. O-O {[%clk 0:02:52]}  Nd7 {[%clk 0:02:51]} 10. Re1 {[%clk 0:02:51]}  Qc7 {[%clk 0:02:49]} 11. a4 {[%clk 0:02:50]}  Nf6 {[%clk 0:02:40]} 12. h3 {[%clk 0:02:49]}  e5 {[%clk 0:02:33]} 13. Nc2 {[%clk 0:02:44]}  Bxe3 {[%clk 0:02:31]} 14. Nxe3 {[%clk 0:02:45]}  Be6 {[%clk 0:02:29]} 15. c4 {[%clk 0:02:41]}  a5 {[%clk 0:02:28]} 16. Nd5 {[%clk 0:02:40]}  Bxd5 {[%clk 0:02:01]} 17. cxd5 {[%clk 0:02:41]}  Nd7 {[%clk 0:02:01]} 18. Bb5 {[%clk 0:02:36]}  Nc5 {[%clk 0:02:01]} 19. Rc1 {[%clk 0:02:29]}  Rac8 {[%clk 0:01:54]} 20. Nc4 {[%clk 0:02:18]}  Ng6 {[%clk 0:01:47]} 21. Rc3 {[%clk 0:02:13]}  f5 {[%clk 0:01:41]} 22. exf5 {[%clk 0:02:12]}  Rxf5 {[%clk 0:01:42]} 23. g3 {[%clk 0:01:49]}  Rcf8 {[%clk 0:01:41]} 24. Re2 {[%clk 0:01:46]}  e4 {[%clk 0:01:27]} 25. Qd4 {[%clk 0:01:46]}  Ne5 {[%clk 0:01:18]} 26. Nxe5 {[%clk 0:01:45]}  Rxe5 {[%clk 0:01:18]} 27. Rxe4 {[%clk 0:01:40]}  Rxe4 {[%clk 0:01:14]} 28. Qxe4 {[%clk 0:01:40]}  Rxf2 {[%clk 0:01:08]} 29. Bd7 {[%clk 0:00:51]}  Qb6 {[%clk 0:00:36]} 30. Qe3 {[%clk 0:00:30]}  Rf8 {[%clk 0:00:29]} 31. Bb5 {[%clk 0:00:23]}  Qd8 {[%clk 0:00:25]} 32. Qd4 {[%clk 0:00:18]}  Qe7 {[%clk 0:00:23]} 33. Re3 {[%clk 0:00:17]}  Qf7 {[%clk 0:00:23]} 34. Re1 {[%clk 0:00:11]}  h6 {[%clk 0:00:21]} 35. Rf1 {[%clk 0:00:10]}  Qe7 {[%clk 0:00:18]} 36. Rxf8+ {[%clk 0:00:11]}  Qxf8 {[%clk 0:00:18]} 37. Qe3 {[%clk 0:00:10]}  Qf6 {[%clk 0:00:17]} 38. Qc3 {[%clk 0:00:04]}  Qxc3 {[%clk 0:00:14]} 39. bxc3 {[%clk 0:00:04]}  Ne4 {[%clk 0:00:07]} 40. Kg2 {[%clk 0:00:02]}  Nxc3 {[%clk 0:00:06]} 41. Bd7 {[%clk 0:00:02]}  Kf7 {[%clk 0:00:06]} 42. Kf3 {[%clk 0:00:03]}  Ke7 {[%clk 0:00:06]} 43. Bc8 {[%clk 0:00:03]}  b6 {[%clk 0:00:06]} 44. Bb7 {[%clk 0:00:02]}  Nxa4 {[%clk 0:00:06]} 45. Ke3 {[%clk 0:00:03]}  b5 {[%clk 0:00:02]} 46. Bc6 {[%clk 0:00:04]}  Nc3 {[%clk 0:00:02]} 47. Kd3 {[%clk 0:00:04]}  b4 {[%clk 0:00:03]} 48. Kc4 {[%clk 0:00:05]}  Kd8 {[%clk 0:00:03]} 49. g4 {[%clk 0:00:03]}  Kc7 {[%clk 0:00:03]} 50. h4 {[%clk 0:00:04]}  g5 {[%clk 0:00:03]} 51. hxg5 {[%clk 0:00:04]}  hxg5 {[%clk 0:00:04]} 52. Kb3 {[%clk 0:00:04]}  Kb6 {[%clk 0:00:05]} 53. Kc4 {[%clk 0:00:04]}  Nd1 {[%clk 0:00:05]} 54. Bd7 {[%clk 0:00:05]}  Ne3+ {[%clk 0:00:04]} 55. Kd4 {[%clk 0:00:05]}  Ng2 {[%clk 0:00:04]} 56. Kc4 {[%clk 0:00:06]}  Nf4 {[%clk 0:00:04]} 57. Kd4 {[%clk 0:00:07]}  Ne2+ {[%clk 0:00:04]} 58. Kc4 {[%clk 0:00:07]}  Ng3 {[%clk 0:00:04]} 59. Be8 {[%clk 0:00:05]}  Ne4 {[%clk 0:00:03]} 60. Bd7 {[%clk 0:00:05]}  Nc5 {[%clk 0:00:03]} 61. Bc6 {[%clk 0:00:05]}  b3 {[%clk 0:00:03]} 62. Kc3 {[%clk 0:00:05]}  a4 {[%clk 0:00:04]} 63. Kb2 {[%clk 0:00:06]}  Ka5 {[%clk 0:00:05]} 64. Ka3 {[%clk 0:00:07]}  Ne4 {[%clk 0:00:04]} 65. Bxa4 {[%clk 0:00:07]}  Nd2 {[%clk 0:00:05]} 66. Bc6 {[%clk 0:00:06]}  Kb6 {[%clk 0:00:05]} 67. Kb2 {[%clk 0:00:06]}  Kc5 {[%clk 0:00:05]} 68. Kc3 {[%clk 0:00:07]}  Ne4+ {[%clk 0:00:06]} 69. Kxb3 {[%clk 0:00:07]}  Nf6 {[%clk 0:00:07]} 70. Kc3 {[%clk 0:00:07]}  Nxd5+ {[%clk 0:00:06]} 71. Kd2 {[%clk 0:00:08]}  Kxc6 {[%clk 0:00:06]} 0-1


[Site "https://www.chess.com"]

[Event "Titled Tuesday Blitz March 08 Early 2022"]
[White "Kadam, Om Manish"]
[Black "Garv Gaur"]
[WhiteFideId "45076294"]
[BlackFideId "45030839"]
[WhiteElo "1729"]
[BlackElo "1950"]
[Result "0-1"]
[Round "10"]
[TimeControl "180+1"]
[Date "2022.03.09"]
[WhiteClock "0:00:10"]
[BlackClock "0:00:52"]

1. e4 {[%clk 0:02:52]}  c6 {[%clk 0:02:59]} 2. Nf3 {[%clk 0:00:08]}  d5 {[%clk 0:02:59]} 3. exd5 {[%clk 0:00:09]}  cxd5 {[%clk 0:02:59]} 4. d4 {[%clk 0:00:10]}  Nc6 {[%clk 0:02:59]} 5. c3 {[%clk 0:00:10]}  Qc7 {[%clk 0:02:57]} 6. Bd3 {[%clk 0:00:11]}  Bg4 {[%clk 0:02:56]} 7. O-O {[%clk 0:00:11]}  e6 {[%clk 0:02:56]} 8. h3 {[%clk 0:00:12]}  Bh5 {[%clk 0:02:56]} 9. Re1 {[%clk 0:00:12]}  Bd6 {[%clk 0:02:55]} 10. Bg5 {[%clk 0:00:12]}  Nge7 {[%clk 0:02:54]} 11. Nbd2 {[%clk 0:00:12]}  h6 {[%clk 0:02:50]} 12. Bxe7 {[%clk 0:00:12]}  Nxe7 {[%clk 0:02:49]} 13. Qb3 {[%clk 0:00:12]}  O-O {[%clk 0:02:44]} 14. Ne5 {[%clk 0:00:12]}  Bxe5 {[%clk 0:02:37]} 15. Rxe5 {[%clk 0:00:11]}  Bg6 {[%clk 0:02:37]} 16. Bxg6 {[%clk 0:00:10]}  Nxg6 {[%clk 0:02:37]} 17. Re3 {[%clk 0:00:11]}  Rfe8 {[%clk 0:02:22]} 18. Rae1 {[%clk 0:00:10]}  Rad8 {[%clk 0:02:21]} 19. Qd1 {[%clk 0:00:10]}  Qb6 {[%clk 0:02:13]} 20. Nb3 {[%clk 0:00:10]}  a5 {[%clk 0:02:11]} 21. Qc2 {[%clk 0:00:10]}  Qb5 {[%clk 0:02:09]} 22. Nc1 {[%clk 0:00:10]}  Rc8 {[%clk 0:02:07]} 23. Nd3 {[%clk 0:00:10]}  b6 {[%clk 0:02:07]} 24. Rg3 {[%clk 0:00:10]}  Qc4 {[%clk 0:01:53]} 25. Qd2 {[%clk 0:00:09]}  Kh7 {[%clk 0:01:34]} 26. a3 {[%clk 0:00:09]}  Qc7 {[%clk 0:01:25]} 27. Kh1 {[%clk 0:00:08]}  Qe7 {[%clk 0:01:24]} 28. Ne5 {[%clk 0:00:08]}  Rc7 {[%clk 0:01:18]} 29. Qd3 {[%clk 0:00:09]}  Qf6 {[%clk 0:01:07]} 30. Rf3 {[%clk 0:00:09]}  Qg5 {[%clk 0:01:03]} 31. Nxf7 {[%clk 0:00:09]}  Rxf7 {[%clk 0:00:51]} 32. Rxf7 {[%clk 0:00:10]}  Kg8 {[%clk 0:00:52]} 33. Rf3 {[%clk 0:00:10]}  Nf4 {[%clk 0:00:52]} 34. Qe3 {[%clk 0:00:10]}  Qxg2# {[%clk 0:00:52]} 0-1


[Site "https://www.chess.com"]

[Event "Titled Tuesday Blitz March 08 Early 2022"]
[White "Kamsky, Gata"]
[Black "Ambartsumova, Karina"]
[WhiteFideId "2000024"]
[BlackFideId "4166299"]
[WhiteElo "2645"]
[BlackElo "2262"]
[Result "1-0"]
[Round "10"]
[TimeControl "180+1"]
[Date "2022.03.08"]
[WhiteClock "0:00:38"]
[BlackClock "0:00:13"]

1. e4 {[%clk 0:02:54]}  e5 {[%clk 0:02:58]} 2. f4 {[%clk 0:02:54]}  d5 {[%clk 0:02:54]} 3. exd5 {[%clk 0:02:50]}  e4 {[%clk 0:02:54]} 4. Nc3 {[%clk 0:02:48]}  Nf6 {[%clk 0:02:52]} 5. Bc4 {[%clk 0:02:22]}  Bc5 {[%clk 0:02:46]} 6. Qe2 {[%clk 0:02:12]}  Bg4 {[%clk 0:02:35]} 7. Qf1 {[%clk 0:02:09]}  O-O {[%clk 0:02:32]} 8. Nge2 {[%clk 0:02:04]}  c6 {[%clk 0:01:59]} 9. d6 {[%clk 0:02:00]}  Qxd6 {[%clk 0:01:55]} 10. h3 {[%clk 0:01:48]}  Be6 {[%clk 0:01:48]} 11. Bxe6 {[%clk 0:01:44]}  Qxe6 {[%clk 0:01:49]} 12. b3 {[%clk 0:01:43]}  Na6 {[%clk 0:01:34]} 13. Bb2 {[%clk 0:01:42]}  Nb4 {[%clk 0:01:34]} 14. O-O-O {[%clk 0:01:40]}  a5 {[%clk 0:01:27]} 15. f5 {[%clk 0:01:33]}  Qe7 {[%clk 0:01:24]} 16. g4 {[%clk 0:01:29]}  Nfd5 {[%clk 0:01:12]} 17. a3 {[%clk 0:01:23]}  Na6 {[%clk 0:01:08]} 18. Qg2 {[%clk 0:01:15]}  Rfe8 {[%clk 0:01:00]} 19. Nxd5 {[%clk 0:01:12]}  cxd5 {[%clk 0:01:01]} 20. f6 {[%clk 0:01:12]}  Qd6 {[%clk 0:00:55]} 21. Qg3 {[%clk 0:01:03]}  Bxa3 {[%clk 0:00:39]} 22. Qxd6 {[%clk 0:01:00]}  Bxd6 {[%clk 0:00:40]} 23. fxg7 {[%clk 0:01:00]}  a4 {[%clk 0:00:39]} 24. bxa4 {[%clk 0:00:50]}  Nc5 {[%clk 0:00:39]} 25. Nc3 {[%clk 0:00:45]}  Nxa4 {[%clk 0:00:19]} 26. Nxd5 {[%clk 0:00:44]}  Nxb2 {[%clk 0:00:18]} 27. Nf6+ {[%clk 0:00:43]}  Kxg7 {[%clk 0:00:16]} 28. Nxe8+ {[%clk 0:00:43]}  Rxe8 {[%clk 0:00:17]} 29. Kxb2 {[%clk 0:00:44]}  Be5+ {[%clk 0:00:17]} 30. Kb3 {[%clk 0:00:43]}  Re6 {[%clk 0:00:16]} 31. Rhe1 {[%clk 0:00:42]}  Rb6+ {[%clk 0:00:16]} 32. Kc4 {[%clk 0:00:41]}  Rc6+ {[%clk 0:00:16]} 33. Kd5 {[%clk 0:00:41]}  Bf6 {[%clk 0:00:16]} 34. c3 {[%clk 0:00:40]}  Rc8 {[%clk 0:00:13]} 35. Kxe4 {[%clk 0:00:38]} 1-0


[Site "https://www.chess.com"]

[Event "Titled Tuesday Blitz March 08 Early 2022"]
[White "Karolczuk, Iwo"]
[Black "Iljin, Timofey"]
[WhiteFideId "21816972"]
[BlackFideId "14110180"]
[WhiteElo "2243"]
[BlackElo "2396"]
[Result "1-0"]
[Round "10"]
[TimeControl "180+1"]
[Date "2022.03.09"]
[WhiteClock "0:00:12"]
[BlackClock "0:00:22"]

1. e4 {[%clk 0:03:00]}  e5 {[%clk 0:03:00]} 2. Nf3 {[%clk 0:02:59]}  Nc6 {[%clk 0:02:59]} 3. Bb5 {[%clk 0:02:59]}  a6 {[%clk 0:02:59]} 4. Ba4 {[%clk 0:02:59]}  Nf6 {[%clk 0:02:59]} 5. O-O {[%clk 0:02:58]}  b5 {[%clk 0:03:00]} 6. Bb3 {[%clk 0:02:58]}  Bc5 {[%clk 0:03:01]} 7. c3 {[%clk 0:02:55]}  d6 {[%clk 0:02:59]} 8. d4 {[%clk 0:02:55]}  Bb6 {[%clk 0:02:59]} 9. Be3 {[%clk 0:02:55]}  O-O {[%clk 0:02:57]} 10. Nbd2 {[%clk 0:02:54]}  h6 {[%clk 0:02:55]} 11. h3 {[%clk 0:02:52]}  Bb7 {[%clk 0:02:55]} 12. Re1 {[%clk 0:02:52]}  Re8 {[%clk 0:02:50]} 13. a4 {[%clk 0:02:25]}  exd4 {[%clk 0:02:47]} 14. cxd4 {[%clk 0:02:21]}  Nxe4 {[%clk 0:02:46]} 15. Nxe4 {[%clk 0:02:22]}  Rxe4 {[%clk 0:02:46]} 16. Bd5 {[%clk 0:02:13]}  Re7 {[%clk 0:02:32]} 17. Rc1 {[%clk 0:01:57]}  Na5 {[%clk 0:02:28]} 18. Bxb7 {[%clk 0:01:56]}  Nxb7 {[%clk 0:02:29]} 19. Nh4 {[%clk 0:01:54]}  Qd7 {[%clk 0:02:26]} 20. Qf3 {[%clk 0:01:52]}  c5 {[%clk 0:02:04]} 21. dxc5 {[%clk 0:01:34]}  dxc5 {[%clk 0:02:05]} 22. Rcd1 {[%clk 0:01:21]}  Qc7 {[%clk 0:01:26]} 23. Nf5 {[%clk 0:01:18]}  Re6 {[%clk 0:01:20]} 24. Bf4 {[%clk 0:01:08]}  Qc8 {[%clk 0:00:59]} 25. Ne7+ {[%clk 0:00:55]}  Rxe7 {[%clk 0:00:59]} 26. Rxe7 {[%clk 0:00:56]}  Nd8 {[%clk 0:00:48]} 27. Re8+ {[%clk 0:00:47]}  Kh7 {[%clk 0:00:48]} 28. Qe4+ {[%clk 0:00:42]}  f5 {[%clk 0:00:48]} 29. Qe7 {[%clk 0:00:37]}  Ra7 {[%clk 0:00:44]} 30. Qf8 {[%clk 0:00:36]}  Rd7 {[%clk 0:00:31]} 31. Qg8+ {[%clk 0:00:24]}  Kg6 {[%clk 0:00:30]} 32. Re6+ {[%clk 0:00:23]}  Kh5 {[%clk 0:00:28]} 33. Qe8+ {[%clk 0:00:22]}  Kh4 {[%clk 0:00:25]} 34. Rxh6+ {[%clk 0:00:13]}  gxh6 {[%clk 0:00:24]} 35. g3+ {[%clk 0:00:12]}  Kxh3 {[%clk 0:00:22]} 36. Qh5# {[%clk 0:00:12]} 1-0


[Site "https://www.chess.com"]

[Event "Titled Tuesday Blitz March 08 Early 2022"]
[White "Kim, Sergey"]
[Black "Havas, Ladislav"]
[WhiteFideId "13700570"]
[BlackFideId "14501090"]
[WhiteElo "2531"]
[BlackElo "2206"]
[Result "1-0"]
[Round "10"]
[TimeControl "180+1"]
[Date "2022.03.09"]
[WhiteClock "0:01:41"]
[BlackClock "0:01:50"]

1. d4 {[%clk 0:03:00]}  Nf6 {[%clk 0:02:59]} 2. c4 {[%clk 0:03:01]}  e5 {[%clk 0:03:00]} 3. dxe5 {[%clk 0:03:00]}  Ne4 {[%clk 0:03:00]} 4. Nf3 {[%clk 0:02:59]}  d6 {[%clk 0:03:00]} 5. e3 {[%clk 0:02:55]}  Nc6 {[%clk 0:02:59]} 6. exd6 {[%clk 0:02:53]}  Bxd6 {[%clk 0:02:59]} 7. Nbd2 {[%clk 0:02:52]}  Bf5 {[%clk 0:02:58]} 8. a3 {[%clk 0:02:49]}  Qe7 {[%clk 0:02:58]} 9. b4 {[%clk 0:02:47]}  O-O-O {[%clk 0:02:55]} 10. Qb3 {[%clk 0:02:38]}  Nxd2 {[%clk 0:02:50]} 11. Bxd2 {[%clk 0:02:37]}  Ne5 {[%clk 0:02:48]} 12. Nd4 {[%clk 0:02:33]}  Qf6 {[%clk 0:02:39]} 13. c5 {[%clk 0:02:29]}  Be7 {[%clk 0:02:38]} 14. Qa4 {[%clk 0:02:27]}  Rxd4 {[%clk 0:02:17]} 15. exd4 {[%clk 0:02:26]}  Nc6 {[%clk 0:02:17]} 16. Be3 {[%clk 0:02:10]}  Nxd4 {[%clk 0:02:16]} 17. Rc1 {[%clk 0:02:10]}  Re8 {[%clk 0:02:07]} 18. Qxe8+ {[%clk 0:01:55]}  Bd8 {[%clk 0:02:00]} 19. Bxd4 {[%clk 0:01:48]}  Qxd4 {[%clk 0:01:59]} 20. Qe3 {[%clk 0:01:48]}  Qb2 {[%clk 0:01:58]} 21. Be2 {[%clk 0:01:43]}  h6 {[%clk 0:01:50]} 22. O-O {[%clk 0:01:41]}  Bg5 {[%clk 0:01:50]} 23. f4 {[%clk 0:01:41]} 1-0


[Site "https://www.chess.com"]